[Event "XVI Memorial Lezcano Montalvo 2024"]
[Site "Gran Canaria"]
[Date "2024.03.31"]
[Round "9.10"]
[White "Van Zyl-Rudd, Jack"]
[Black "Tytynnik, Artem"]
[Result "1/2-1/2"]
[ECO "D40"]
[WhiteElo "2264"]
[BlackElo "2197"]
[Annotator "RC"]
[PlyCount "47"]
[EventDate "2024.03.23"]
[EventType "swiss"]
[EventCountry "ESP"]
[SourceTitle "playchess.com"]
[Source "ChessBase"]
[SourceQuality "1"]
[TimeControl "5400+30"]

1. d4 {[%emt 0:12:27]} Nf6 {[%emt 0:01:57]} 2. c4 {[%emt 0:00:11]} e6 {[%emt 0:00:11]} 3. Nc3 {[%emt 0:00:07]} Bb4 {[%emt 0:01:46]} 4. Qc2 {[%emt 0:02:48]} c5 {[%emt 0:00:50]} 5. dxc5 {[%emt 0:00:05]} O-O {[%emt 0:02:55]} 6. a3 {[%emt 0:00:21]} Bxc5 {[%emt 0:00:16]} 7. Nf3 {[%emt 0:00:07]} Nc6 {[%emt 0:08:03]} 8. e3 {[%emt 0:00:05]} d5 {[%emt 0:01:42]} 9. b4 {[%emt 0:00:16]} Be7 {[%emt 0:02:02]} 10. Bb2 {[%emt 0:00:29]} dxc4 {[%emt 0:04:19]} 11. Bxc4 {[%emt 0:01:07]} a6 {[%emt 0:00:27]} 12. Ne4 {[%emt 0:20:12]} Nxe4 {[%emt 0:04:08]} 13. Qxe4 {[%emt 0:02:03]} Bf6 {[%emt 0:00:39]} 14. Rd1 {[%emt 0:02:09]} Qe7 {[%emt 0:00:50]} 15. Ne5 {[%emt 0:07:36]} Nxe5 {[%emt 0:08:39]} 16. Bxe5 {[%emt 0:00:22]} Bxe5 {[%emt 0:00:08]} 17. Qxe5 {[%emt 0:00:02]} a5 {[%emt 0:06:16]} 18. Qb5 {[%emt 0:05:43]} axb4 {[%emt 0:07:27]} 19. axb4 {[%emt 0:00:02]} Qc7 {[%emt 0:05:16]} 20. O-O {[%emt 0:13:46]} b6 {[%emt 0:01:16]} 21. Be2 {[%emt 0:02:11]} Ba6 {[%emt 0:05:02]} 22. Qh5 {[%emt 0:00:03]} g6 {[%emt 0:01:20]} 23. Qf3 {[%emt 0:01:39]} Bb7 {[%emt 0:01:04]} 24. Qf6 {[%emt 0:00:26]} 1/2-1/2

[Event "XVI Memorial Lezcano Montalvo 2024"]
[Site "Gran Canaria"]
[Date "2024.03.31"]
[Round "9.12"]
[White "Mendez Acosta, Alexander Jesus"]
[Black "Sanz Wawer, Daniel"]
[Result "0-1"]
[ECO "A26"]
[WhiteElo "2025"]
[BlackElo "2397"]
[Annotator "TA"]
[PlyCount "58"]
[EventDate "2024.03.23"]
[EventType "swiss"]
[EventCountry "ESP"]
[SourceTitle "playchess.com"]
[Source "ChessBase"]
[SourceQuality "1"]
[TimeControl "5400+30"]

{[%evp 13,58,15,37,0,0,2,6,-16,-10,-26,-21,-18,0,-46,-37,-38,-45,-120,-121,-288,-268,-360,-197,-191,-181,-193,-181,-185,-53,-58,-56,-61,-42,-120,-132,-132,-133,-132,-150,-1014,-182,-535,-545,-1120,-1089,-1107,-1098]} 1. c4 {[%emt 1:31:00]} e5 {[%emt 0:01:53]} 2. Nc3 {[%emt 0:00:00]} Nc6 {[%emt 0:00:03]} 3. g3 {[%emt 0:00:00]} g6 {[%emt 0:00:12]} 4. Bg2 {[%emt 0:00:00]} Bg7 {[%emt 0:00:09]} 5. d3 {[%emt 0:00:00]} Nge7 {[%emt 0:00:11]} 6. e4 {[%emt 0:00:00]} d6 {[%emt 0:00:23]} 7. Nge2 {[%emt 0:00:00]} Be6 {[%emt 0:00:09]} 8. Be3 {[%emt 0:00:00]} Nd4 {[%emt 0:01:17]} 9. O-O {[%emt 0:00:00]} c6 {[%emt 0:03:36]} 10. f4 {[%emt 0:00:00] The position is equal.} Qd7 {[%emt 0:00:56]} 11. Qd2 {[%emt 0:00:00]} h5 {[%emt 0:06:06]} 12. Bf2 {[%emt 0:00:00]} h4 {[%emt 0:03:57]} 13. Nxd4 {[%emt 0:00:00]} (13. gxh4 $11 {was preferrable.} Nxe2+ 14. Nxe2) 13... exd4 $15 {[%emt 0:00:09]} 14. Ne2 {[%emt 0:00:00]} hxg3 {[%emt 0:00:18]} 15. hxg3 {[%emt 0:00:00]} (15. Bxg3 $15 O-O-O 16. Rac1) 15... c5 $17 {[%emt 0:02:52]} 16. Bh1 $2 {[%emt 0:00:00]} (16. b4 $17) 16... O-O-O $19 {[%emt 0:01:29][%cal Oh8h1]} 17. b4 {[%emt 0:00:00]} Bg4 {[%emt 0:33:30] Wards off Bf3} (17... Rxh1+ $142 18. Kxh1 Rh8+ 19. Kg1 Bh3 20. bxc5 Qg4 (20... Bxf1 $2 21. Kxf1 Qh3+ 22. Ke1 $19)) 18. Bg2 {[%emt 0:00:00]} Bh3 $40 {[%emt 0:00:32][%mdl 128] White is in trouble.} 19. Bf3 {[%emt 0:00:00] Against Qg4} Bxf1 {[%emt 0:00:22]} 20. Kxf1 {[%emt 0:00:00]} cxb4 {[%emt 0:05:58]} (20... g5 $19 {White must now prevent ...gxf4.} 21. bxc5 dxc5) 21. Qxb4 $15 {[%emt 0:00:00][%cal Oa1b1]} Nc6 {[%emt 0:00:07]} 22. Qb5 {[%emt 0:00:00]} a6 {[%emt 0:00:58]} 23. Qg5 {[%emt 0:00:00]} (23. Qb2 $15) 23... Qh3+ $1 $17 {[%emt 0:03:41]} 24. Ke1 {[%emt 0:00:00] [#] Threatens to win with Bg4+.} Qh6 $1 {[%emt 0:00:48] And now ...Qxg5 would win.} 25. Qg4+ {[%emt 0:00:00]} Kc7 {[%emt 0:01:07]} 26. Kd2 $2 {[%emt 0:00:00]} (26. a4 $17) 26... Qh3 $2 {[%emt 0:03:28]} (26... Ne5 27. Rf1 Nxg4 28. Bxg4 g5) 27. Qg5 $2 {[%emt 0:00:00] [#]} (27. Rc1) 27... Ne5 $1 $19 {[%emt 0:01:33][%mdl 512] Black is clearly winning.} 28. Ng1 {[%emt 0:00:00][%cal Of4e5] aiming for fxe5!} (28. fxe5 Bh6) 28... Qh2 {[%emt 0:00:36]} 29. Ke2 {[%emt 0:00:00]} f6 {[%emt 0:00:09] Weighted Error Value: White=0.90/Black=0.36.  Loses game:     	White=2     	---        Mistake:       	White=4     	Black=3      Inaccurate:     	White=2     	---        OK:         	White=7     	Black=10     Best:        	White=1     	Black=1      Strong:       	---       	Black=2} 0-1

[Event "XVI Memorial Lezcano Montalvo 2024"]
[Site "Gran Canaria"]
[Date "2024.03.31"]
[Round "9.13"]
[White "Barlov, Dragan"]
[Black "Camino Carrio, Nicanor"]
[Result "1-0"]
[ECO "A65"]
[WhiteElo "2387"]
[BlackElo "1962"]
[Annotator "RC"]
[PlyCount "67"]
[EventDate "2024.03.23"]
[EventType "swiss"]
[EventCountry "ESP"]
[SourceTitle "playchess.com"]
[Source "ChessBase"]
[SourceQuality "1"]
[TimeControl "5400+30"]

1. d4 {[%emt 0:01:33]} Nf6 {[%emt 0:00:34]} 2. c4 {[%emt 0:00:14]} e6 {[%emt 0:00:47]} 3. Nc3 {[%emt 0:00:58]} c5 {[%emt 0:00:20]} 4. d5 {[%emt 0:00:57]} exd5 {[%emt 0:00:11]} 5. cxd5 {[%emt 0:00:06]} d6 {[%emt 0:00:14]} 6. e4 {[%emt 0:07:24]} g6 {[%emt 0:00:53]} 7. Bd3 {[%emt 0:01:12]} Bg7 {[%emt 0:00:32]} 8. h3 {[%emt 0:00:39]} O-O {[%emt 0:00:56]} 9. Nge2 {[%emt 0:04:22]} a6 {[%emt 0:07:18]} 10. a4 {[%emt 0:02:00]} Nbd7 {[%emt 0:01:04]} 11. O-O {[%emt 0:00:52]} Re8 {[%emt 0:01:28]} 12. Ng3 {[%emt 0:05:30]} Rb8 {[%emt 0:02:24]} 13. Be3 {[%emt 0:07:45]} Qe7 {[%emt 0:09:01]} 14. f4 {[%emt 0:04:42]} b5 {[%emt 0:06:40]} 15. axb5 {[%emt 0:10:42]} axb5 {[%emt 0:00:07]} 16. Bf2 {[%emt 0:00:50]} c4 {[%emt 0:02:57]} 17. Bb1 {[%emt 0:02:09]} b4 {[%emt 0:01:45]} 18. Nce2 {[%emt 0:00:59]} Nc5 {[%emt 0:08:22]} 19. Bxc5 {[%emt 0:03:14]} dxc5 {[%emt 0:03:57]} 20. e5 {[%emt 0:00:05]} Nd7 {[%emt 0:05:48]} 21. Ne4 {[%emt 0:12:52]} Nxe5 {[%emt 0:02:47]} 22. d6 {[%emt 0:01:31]} Qe6 {[%emt 0:00:23]} 23. fxe5 {[%emt 0:01:51]} Bxe5 {[%emt 0:01:06]} 24. Nf4 {[%emt 0:02:53]} Bxf4 {[%emt 0:09:18]} 25. Rxf4 {[%emt 0:00:21]} f5 {[%emt 0:00:23]} 26. d7 {[%emt 0:00:48]} Bxd7 {[%emt 0:03:49]} 27. Qxd7 {[%emt 0:00:52]} Rbd8 {[%emt 0:02:56]} 28. Qxe6+ {[%emt 0:00:55]} Rxe6 {[%emt 0:00:07]} 29. Nxc5 {[%emt 0:04:12]} Re1+ {[%emt 0:00:11]} 30. Kf2 {[%emt 0:12:58]} Rc1 {[%emt 0:00:48]} 31. Nd3 {[%emt 0:04:25]} Rxd3 {[%emt 0:07:08]} 32. Bxd3 {[%emt 0:00:13]} Rxa1 {[%emt 0:00:15]} 33. Rxc4 {[%emt 0:01:42]} Rd1 {[%emt 0:00:22]} 34. Be2 {[%emt 0:00:10]} 1-0

[Event "XVI Memorial Lezcano Montalvo 2024"]
[Site "Gran Canaria"]
[Date "2024.03.31"]
[Round "9.14"]
[White "Oudeh Mishmesh, Omar"]
[Black "Hernandez Leon, Sergio"]
[Result "0-1"]
[ECO "A25"]
[WhiteElo "2301"]
[BlackElo "2172"]
[Annotator "RC"]
[PlyCount "98"]
[EventDate "2024.03.23"]
[EventType "swiss"]
[EventCountry "ESP"]
[SourceTitle "playchess.com"]
[Source "ChessBase"]
[SourceQuality "1"]
[TimeControl "5400+30"]

1. c4 {[%emt 0:00:01]} e5 {[%emt 0:00:05]} 2. Nc3 {[%emt 0:00:06]} Nf6 {[%emt 0:00:08]} 3. g3 {[%emt 0:00:08]} Nc6 {[%emt 0:00:19]} 4. Bg2 {[%emt 0:00:05]} Bb4 {[%emt 0:00:11]} 5. e4 {[%emt 0:04:28]} O-O {[%emt 0:00:40]} 6. Nge2 {[%emt 0:00:37]} d6 {[%emt 0:02:17]} 7. O-O {[%emt 0:00:32]} a5 {[%emt 0:02:42]} 8. d3 {[%emt 0:02:06]} h6 {[%emt 0:03:24]} 9. h3 {[%emt 0:03:00]} Be6 {[%emt 0:02:57]} 10. Kh2 {[%emt 0:03:25]} Nd7 {[%emt 0:05:12]} 11. Nd5 {[%emt 0:10:43]} Bc5 {[%emt 0:02:33]} 12. g4 {[%emt 0:03:47]} Nd4 {[%emt 0:03:52]} 13. Ng3 {[%emt 0:05:26]} c6 {[%emt 0:08:19]} 14. Ne3 {[%emt 0:00:35]} Qh4 {[%emt 0:00:39]} 15. f4 {[%emt 0:05:43]} exf4 {[%emt 0:14:12]} 16. Rxf4 {[%emt 0:00:04]} Ne5 {[%emt 0:01:10]} 17. Nef5 {[%emt 0:02:50]} Bxf5 {[%emt 0:01:53]} 18. Nxf5 {[%emt 0:08:04]} Nxf5 {[%emt 0:04:13]} 19. gxf5 {[%emt 0:09:01]} Qf6 {[%emt 0:00:31]} 20. Qe2 {[%emt 0:03:30]} a4 {[%emt 0:12:46]} 21. Rb1 {[%emt 0:05:04]} Ra6 {[%emt 0:01:14]} 22. Be3 {[%emt 0:10:54]} Bxe3 {[%emt 0:01:12]} 23. Qxe3 {[%emt 0:00:02]} c5 {[%emt 0:00:07]} 24. Rf2 {[%emt 0:01:03]} Rb6 {[%emt 0:02:34]} 25. Rg1 {[%emt 0:01:38]} Kh7 {[%emt 0:02:51]} 26. Bf1 {[%emt 0:01:48]} Nc6 {[%emt 0:01:56]} 27. Rgg2 {[%emt 0:03:00]} Nb4 {[%emt 0:03:41]} 28. Be2 {[%emt 0:06:49]} Qe5+ {[%emt 0:04:34]} 29. Kh1 {[%emt 0:00:30]} Nxa2 {[%emt 0:04:05]} 30. f6 {[%emt 0:00:43]} g6 {[%emt 0:00:44]} 31. Rf5 {[%emt 0:02:28]} Qxb2 {[%emt 0:02:09]} 32. Qg3 {[%emt 0:01:35]} Qa1+ {[%emt 0:01:31]} 33. Kh2 {[%emt 0:01:20]} Rb1 {[%emt 0:01:21]} 34. Qxd6 {[%emt 0:01:10]} Rh1+ {[%emt 0:00:21]} 35. Kg3 {[%emt 0:00:03]} gxf5 {[%emt 0:01:32]} 36. Qxf8 {[%emt 0:01:28]} Qe5+ {[%emt 0:00:06]} 37. Kf2 {[%emt 0:02:19]} Qd4+ {[%emt 0:04:38]} 38. Kg3 {[%emt 0:00:51]} Qxf6 {[%emt 0:00:29]} 39. Qxc5 {[%emt 0:01:15]} f4+ {[%emt 0:00:23]} 40. Kg4 {[%emt 0:01:18]} Qg6+ {[%emt 0:01:31]} 41. Kf3 {[%emt 0:00:05]} Rxh3+ {[%emt 0:00:09]} 42. Kf2 {[%emt 0:00:03]} Qf6 {[%emt 0:00:29]} 43. Bg4 {[%emt 0:01:49]} Qh4+ {[%emt 0:02:05]} 44. Ke2 {[%emt 0:00:03]} Re3+ {[%emt 0:00:07]} 45. Qxe3 {[%emt 0:00:53]} fxe3 {[%emt 0:00:05]} 46. Bf5+ {[%emt 0:00:12]} Kh8 {[%emt 0:00:05]} 47. Kxe3 {[%emt 0:00:17]} Nb4 {[%emt 0:00:28]} 48. Rb2 {[%emt 0:00:56]} Qe1+ {[%emt 0:00:15]} 49. Kd4 {[%emt 0:00:18]} a3 {[%emt 0:06:15]} 0-1

[Event "XVI Memorial Lezcano Montalvo 2024"]
[Site "Gran Canaria"]
[Date "2024.03.31"]
[Round "9.15"]
[White "Hernando Rodrigo, Jose Maria"]
[Black "Cruz Pino, Adrian"]
[Result "0-1"]
[ECO "E40"]
[WhiteElo "2257"]
[BlackElo "2015"]
[Annotator "RC"]
[PlyCount "72"]
[EventDate "2024.03.23"]
[EventType "swiss"]
[EventCountry "ESP"]
[SourceTitle "playchess.com"]
[Source "ChessBase"]
[SourceQuality "1"]
[TimeControl "5400+30"]

1. d4 {[%emt 0:03:44]} Nf6 {[%emt 0:00:07]} 2. c4 {[%emt 0:00:14]} e6 {[%emt 0:00:05]} 3. Nc3 {[%emt 0:00:11]} Bb4 {[%emt 0:00:09]} 4. e3 {[%emt 0:00:24]} Bxc3+ {[%emt 0:01:11]} 5. bxc3 {[%emt 0:00:08]} b6 {[%emt 0:00:20]} 6. Qf3 {[%emt 0:06:43]} Nc6 {[%emt 0:10:30]} 7. e4 {[%emt 0:03:33]} e5 {[%emt 0:06:54]} 8. d5 {[%emt 0:00:45]} Ne7 {[%emt 0:03:42]} 9. Bd3 {[%emt 0:10:32]} d6 {[%emt 0:00:52]} 10. Qg3 {[%emt 0:07:44]} O-O {[%emt 0:06:09]} 11. Ne2 {[%emt 0:03:43]} Nd7 {[%emt 0:02:35]} 12. Bh6 {[%emt 0:13:46]} Ng6 {[%emt 0:01:09]} 13. Bd2 {[%emt 0:02:56]} Nc5 {[%emt 0:00:57]} 14. h4 {[%emt 0:03:12]} f5 {[%emt 0:05:55]} 15. exf5 {[%emt 0:00:41]} Bxf5 {[%emt 0:09:26]} 16. Bxf5 {[%emt 0:01:34]} Rxf5 {[%emt 0:00:56]} 17. h5 {[%emt 0:00:53]} Nf4 {[%emt 0:00:34]} 18. Bxf4 {[%emt 0:03:56]} exf4 {[%emt 0:00:15]} 19. Qf3 {[%emt 0:00:11]} Qe8 {[%emt 0:02:32]} 20. g4 {[%emt 0:04:02]} Re5 {[%emt 0:01:32]} 21. Kf1 {[%emt 0:00:05]} Qa4 {[%emt 0:00:27]} 22. Qxf4 {[%emt 0:04:49]} Re4 {[%emt 0:00:46]} 23. Qd2 {[%emt 0:01:39]} Qxc4 {[%emt 0:00:10]} 24. f3 {[%emt 0:00:08]} Rf8 {[%emt 0:00:54]} 25. Rh3 {[%emt 0:13:27]} Re5 {[%emt 0:03:22]} 26. Rd1 {[%emt 0:03:19]} Qxg4 {[%emt 0:04:13]} 27. Ng1 {[%emt 0:00:29]} Rxh5 {[%emt 0:01:01]} 28. Rxh5 {[%emt 0:00:11]} Qxh5 {[%emt 0:00:05]} 29. Re1 {[%emt 0:00:04]} Qf7 {[%emt 0:04:26]} 30. Re3 {[%emt 0:02:50]} Nd7 {[%emt 0:00:34]} 31. c4 {[%emt 0:06:58]} Ne5 {[%emt 0:00:16]} 32. Qc3 {[%emt 0:00:01]} Qf4 {[%emt 0:00:59]} 33. c5 {[%emt 0:00:30]} bxc5 {[%emt 0:00:19]} 34. Ne2 {[%emt 0:00:10]} Qxf3+ {[%emt 0:00:29]} 35. Ke1 {[%emt 0:00:18]} Qh1+ {[%emt 0:01:57]} 36. Kd2 {[%emt 0:00:05]} Qxd5+ {[%emt 0:00:16]} 0-1

[Event "XVI Memorial Lezcano Montalvo 2024"]
[Site "Gran Canaria"]
[Date "2024.03.31"]
[Round "9.16"]
[White "Estremera Panos, Sergio"]
[Black "Perez Garcia, Jimena"]
[Result "1-0"]
[ECO "E52"]
[WhiteElo "2233"]
[BlackElo "1992"]
[Annotator "RC"]
[PlyCount "75"]
[EventDate "2024.03.23"]
[EventType "swiss"]
[EventCountry "ESP"]
[SourceTitle "playchess.com"]
[Source "ChessBase"]
[SourceQuality "1"]
[TimeControl "5400+30"]

1. d4 {[%emt 0:03:32]} Nf6 {[%emt 0:00:21]} 2. c4 {[%emt 0:00:49]} e6 {[%emt 0:00:18]} 3. Nc3 {[%emt 0:00:34]} Bb4 {[%emt 0:00:28]} 4. e3 {[%emt 0:00:09]} b6 {[%emt 0:00:21]} 5. Bd3 {[%emt 0:00:10]} Bb7 {[%emt 0:00:29]} 6. Nf3 {[%emt 0:00:28]} O-O {[%emt 0:01:29]} 7. O-O {[%emt 0:00:13]} d5 {[%emt 0:00:33]} 8. cxd5 {[%emt 0:01:28]} exd5 {[%emt 0:00:29]} 9. Ne5 {[%emt 0:00:51]} Bd6 {[%emt 0:03:08]} 10. f4 {[%emt 0:00:22]} c5 {[%emt 0:00:56]} 11. Qf3 {[%emt 0:00:58]} Nc6 {[%emt 0:05:51]} 12. Qh3 {[%emt 0:02:34]} g6 {[%emt 0:24:57]} 13. Kh1 {[%emt 0:27:39]} cxd4 {[%emt 0:10:23]} 14. Nxc6 {[%emt 0:00:15]} Bxc6 {[%emt 0:00:12]} 15. exd4 {[%emt 0:00:06]} Re8 {[%emt 0:20:10]} 16. f5 {[%emt 0:01:48]} Ne4 {[%emt 0:03:04]} 17. fxg6 {[%emt 0:05:10]} hxg6 {[%emt 0:01:14]} 18. Nxe4 {[%emt 0:01:35]} Rxe4 {[%emt 0:03:22]} 19. Bxe4 {[%emt 0:00:52]} dxe4 {[%emt 0:00:02]} 20. Be3 {[%emt 0:04:42]} Bd5 {[%emt 0:02:33]} 21. b3 {[%emt 0:04:42]} Be6 {[%emt 0:09:23]} 22. Qh6 {[%emt 0:00:28]} Bf8 {[%emt 0:01:36]} 23. Qf4 {[%emt 0:00:06]} Bd5 {[%emt 0:00:41]} 24. Rac1 {[%emt 0:01:09]} Bd6 {[%emt 0:00:46]} 25. Qh6 {[%emt 0:01:22]} Bf8 {[%emt 0:00:38]} 26. Qf4 {[%emt 0:02:54]} Bd6 {[%emt 0:00:07]} 27. Qf2 {[%emt 0:00:12]} Qe7 {[%emt 0:03:41]} 28. Bf4 {[%emt 0:06:45]} Re8 {[%emt 0:00:23]} 29. Qe3 {[%emt 0:01:26]} Bxf4 {[%emt 0:05:17]} 30. Rxf4 {[%emt 0:00:08]} Kg7 {[%emt 0:00:43]} 31. h3 {[%emt 0:04:15]} Rh8 {[%emt 0:01:10]} 32. Rcf1 {[%emt 0:02:06]} Qd7 {[%emt 0:00:31]} 33. Kh2 {[%emt 0:01:29]} Qe7 {[%emt 0:00:45]} 34. Kg1 {[%emt 0:02:20]} Qd7 {[%emt 0:00:38]} 35. Rf6 {[%emt 0:08:35]} Qe7 {[%emt 0:00:37]} 36. Qg5 {[%emt 0:00:37]} Qd7 {[%emt 0:00:38]} 37. Qe5 {[%emt 0:00:21]} Kg8 {[%emt 0:00:34]} 38. Rd6 {[%emt 0:00:21]} 1-0

[Event "XVI Memorial Lezcano Montalvo 2024"]
[Site "Gran Canaria"]
[Date "2024.03.31"]
[Round "9.17"]
[White "Rivero Tacoronte, Gabriel"]
[Black "Blanco Garcia Bajo, David"]
[Result "0-1"]
[ECO "E18"]
[WhiteElo "1831"]
[BlackElo "2004"]
[Annotator "RC"]
[PlyCount "95"]
[EventDate "2024.03.23"]
[EventType "swiss"]
[EventCountry "ESP"]
[SourceTitle "playchess.com"]
[Source "ChessBase"]
[SourceQuality "1"]
[TimeControl "5400+30"]

1. d4 {[%emt 0:00:02]} Nf6 {[%emt 0:00:09]} 2. c4 {[%emt 0:00:04]} e6 {[%emt 0:00:07]} 3. Nf3 {[%emt 0:00:05]} b6 {[%emt 0:00:08]} 4. g3 {[%emt 0:00:13]} Bb7 {[%emt 0:00:11]} 5. Bg2 {[%emt 0:00:04]} Be7 {[%emt 0:00:17]} 6. Nc3 {[%emt 0:00:11]} O-O {[%emt 0:01:10]} 7. Qc2 {[%emt 0:00:09]} d5 {[%emt 0:01:29]} 8. cxd5 {[%emt 0:00:30]} exd5 {[%emt 0:00:49]} 9. O-O {[%emt 0:04:24]} Re8 {[%emt 0:11:09]} 10. Nh4 {[%emt 0:18:27]} Ne4 {[%emt 0:07:54]} 11. Nf5 {[%emt 0:08:58]} Bf6 {[%emt 0:07:25]} 12. Nb5 {[%emt 0:06:16]} c6 {[%emt 0:19:49]} 13. Bxe4 {[%emt 0:04:31]} cxb5 {[%emt 0:00:43]} 14. Bf3 {[%emt 0:07:06]} Nc6 {[%emt 0:11:13]} 15. Bf4 {[%emt 0:06:56]} Nxd4 {[%emt 0:04:05]} 16. Nxd4 {[%emt 0:00:26]} Bxd4 {[%emt 0:00:09]} 17. Rfd1 {[%emt 0:01:54]} Be5 {[%emt 0:04:08]} 18. Bxe5 {[%emt 0:01:07]} Rxe5 {[%emt 0:00:02]} 19. Rd4 {[%emt 0:00:19]} Qc8 {[%emt 0:05:53]} 20. Qd2 {[%emt 0:03:44]} Qe6 {[%emt 0:06:32]} 21. Rd1 {[%emt 0:05:25]} g6 {[%emt 0:05:21]} 22. Rxd5 {[%emt 0:11:29]} Bxd5 {[%emt 0:06:46]} 23. Bxd5 {[%emt 0:00:06]} Rxd5 {[%emt 0:00:51]} 24. Qxd5 {[%emt 0:00:08]} Re8 {[%emt 0:00:29]} 25. Qxe6 {[%emt 0:01:08]} Rxe6 {[%emt 0:00:06]} 26. Rd2 {[%emt 0:01:50]} Rc6 {[%emt 0:01:20]} 27. Kg2 {[%emt 0:03:13]} Kg7 {[%emt 0:00:50]} 28. Kf3 {[%emt 0:00:33]} Kf6 {[%emt 0:00:54]} 29. e4 {[%emt 0:01:31]} Ke6 {[%emt 0:01:13]} 30. Kf4 {[%emt 0:02:18]} h5 {[%emt 0:01:16]} 31. f3 {[%emt 0:02:37]} a5 {[%emt 0:00:20]} 32. Ke3 {[%emt 0:03:46]} Rc5 {[%emt 0:02:23]} 33. f4 {[%emt 0:00:34]} f6 {[%emt 0:00:19]} 34. Kd3 {[%emt 0:00:49]} h4 {[%emt 0:01:23]} 35. Rc2 {[%emt 0:04:13]} hxg3 {[%emt 0:00:29]} 36. hxg3 {[%emt 0:00:03]} Kd6 {[%emt 0:00:28]} 37. g4 {[%emt 0:00:31]} g5 {[%emt 0:00:25]} 38. e5+ {[%emt 0:01:42]} fxe5 {[%emt 0:00:41]} 39. Rxc5 {[%emt 0:01:27]} bxc5 {[%emt 0:00:11]} 40. fxg5 {[%emt 0:00:20]} c4+ {[%emt 0:00:26]} 41. Ke4 {[%emt 0:00:26]} b4 {[%emt 0:00:34]} 42. g6 {[%emt 0:00:57]} Ke6 {[%emt 0:00:11]} 43. g5 {[%emt 0:00:42]} a4 {[%emt 0:00:16]} 44. Ke3 {[%emt 0:00:41]} b3 {[%emt 0:00:27]} 45. axb3 {[%emt 0:00:22]} cxb3 {[%emt 0:00:23]} 46. Kd3 {[%emt 0:00:35]} e4+ {[%emt 0:00:15]} 47. Kc3 {[%emt 0:00:22]} e3 {[%emt 0:00:06]} 48. Kd4 {[%emt 0:01:16]} 0-1

[Event "XVI Memorial Lezcano Montalvo 2024"]
[Site "Gran Canaria"]
[Date "2024.03.31"]
[Round "9.18"]
[White "Garbezza, Davide"]
[Black "Garcia Padron, Jose"]
[Result "0-1"]
[ECO "E15"]
[WhiteElo "1888"]
[BlackElo "2385"]
[Annotator "RC"]
[PlyCount "58"]
[EventDate "2024.03.23"]
[EventType "swiss"]
[EventCountry "ESP"]
[SourceTitle "playchess.com"]
[Source "ChessBase"]
[SourceQuality "1"]
[TimeControl "5400+30"]

1. d4 {[%emt 0:00:02]} Nf6 {[%emt 0:00:04]} 2. c4 {[%emt 0:00:04]} e6 {[%emt 0:00:03]} 3. Nf3 {[%emt 0:00:05]} b6 {[%emt 0:00:03]} 4. g3 {[%emt 0:00:05]} Ba6 {[%emt 0:00:04]} 5. b3 {[%emt 0:00:07]} Bb4+ {[%emt 0:00:05]} 6. Bd2 {[%emt 0:00:09]} Be7 {[%emt 0:00:20]} 7. Bg2 {[%emt 0:01:03]} c6 {[%emt 1:33:21]} 8. O-O {[%emt 0:02:01]} d5 {[%emt 0:00:00]} 9. cxd5 {[%emt 0:02:23]} cxd5 {[%emt 0:00:00]} 10. Ne5 {[%emt 0:05:35]} Nfd7 {[%emt 0:00:00]} 11. Nxd7 {[%emt 0:01:34]} Qxd7 {[%emt 0:00:00]} 12. Re1 {[%emt 0:07:47]} Nc6 {[%emt 0:00:00]} 13. e3 {[%emt 0:03:48]} Rc8 {[%emt 0:00:00]} 14. a3 {[%emt 0:02:18]} O-O {[%emt 0:00:00]} 15. Nc3 {[%emt 0:04:57]} Na5 {[%emt 0:00:00]} 16. Bf1 {[%emt 0:10:55]} Bxf1 {[%emt 0:00:00]} 17. Rxf1 {[%emt 0:00:06]} Rc7 {[%emt 0:00:00]} 18. Qb1 {[%emt 0:02:07]} Rfc8 {[%emt 0:00:00]} 19. Qb2 {[%emt 0:54:54]} h5 {[%emt 0:00:00]} 20. h4 {[%emt 0:00:00]} e5 {[%emt 0:00:00]} 21. Rac1 {[%emt 0:00:00]} exd4 {[%emt 0:00:00]} 22. exd4 {[%emt 0:00:00]} Qf5 {[%emt 0:00:00]} 23. Bf4 {[%emt 0:00:00]} Rc6 {[%emt 0:00:00]} 24. Rfe1 {[%emt 0:00:00]} Bxh4 {[%emt 0:00:00]} 25. Re5 {[%emt 0:00:00]} Qg4 {[%emt 0:00:00]} 26. Ne2 {[%emt 0:00:00]} Rxc1+ {[%emt 0:00:00]} 27. Bxc1 {[%emt 0:00:00]} Bf6 {[%emt 0:00:00]} 28. Re3 {[%emt 0:00:00]} h4 {[%emt 0:00:00]} 29. f3 {[%emt 0:05:00]} Qg6 {[%emt 0:00:00]} 0-1

[Event "XVI Memorial Lezcano Montalvo 2024"]
[Site "Gran Canaria"]
[Date "2024.03.31"]
[Round "9.19"]
[White "Marrero Rodriguez, Jorge"]
[Black "Quiceno Ramirez, Edwin Alejandro"]
[Result "1-0"]
[ECO "D27"]
[WhiteElo "2177"]
[BlackElo "1888"]
[Annotator "RC"]
[PlyCount "67"]
[EventDate "2024.03.23"]
[EventType "swiss"]
[EventCountry "ESP"]
[SourceTitle "playchess.com"]
[Source "ChessBase"]
[SourceQuality "1"]
[TimeControl "5400+30"]

1. d4 {[%emt 0:00:03]} d5 {[%emt 0:00:12]} 2. c4 {[%emt 0:00:06]} dxc4 {[%emt 0:00:01]} 3. Nf3 {[%emt 0:01:09]} Nf6 {[%emt 0:02:01]} 4. e3 {[%emt 0:00:15]} e6 {[%emt 0:00:07]} 5. Bxc4 {[%emt 0:00:09]} c5 {[%emt 0:00:11]} 6. O-O {[%emt 0:00:13]} a6 {[%emt 0:00:04]} 7. Re1 {[%emt 0:03:43]} b5 {[%emt 0:01:14]} 8. Bf1 {[%emt 0:00:53]} Bb7 {[%emt 0:00:08]} 9. a4 {[%emt 0:10:31]} b4 {[%emt 0:03:10]} 10. b3 {[%emt 0:04:02]} Nbd7 {[%emt 0:00:58]} 11. Bb2 {[%emt 0:00:57]} Be7 {[%emt 0:01:27]} 12. Nbd2 {[%emt 0:00:45]} O-O {[%emt 0:00:33]} 13. Rc1 {[%emt 0:03:24]} Rc8 {[%emt 0:01:17]} 14. Bd3 {[%emt 0:02:59]} h6 {[%emt 0:00:55]} 15. Qe2 {[%emt 0:00:16]} a5 {[%emt 0:02:49]} 16. e4 {[%emt 0:12:14]} cxd4 {[%emt 0:06:49]} 17. Rxc8 {[%emt 0:00:09]} Qxc8 {[%emt 0:00:02]} 18. Nc4 {[%emt 0:01:44]} Qa8 {[%emt 0:16:13]} 19. e5 {[%emt 0:21:56]} Nh5 {[%emt 0:09:05]} 20. Bxd4 {[%emt 0:05:31]} Nf4 {[%emt 0:02:45]} 21. Qe3 {[%emt 0:00:33]} Nxd3 {[%emt 0:15:15]} 22. Qxd3 {[%emt 0:00:02]} Bxf3 {[%emt 0:00:01]} 23. Qxf3 {[%emt 0:03:16]} Qxf3 {[%emt 0:00:09]} 24. gxf3 {[%emt 0:00:01]} Ra8 {[%emt 0:37:04]} 25. Rd1 {[%emt 0:01:17]} Bc5 {[%emt 0:00:00]} 26. Be3 {[%emt 0:01:32]} Ra7 {[%emt 0:00:00]} 27. Rxd7 {[%emt 0:00:24]} Rxd7 {[%emt 0:00:00]} 28. Bxc5 {[%emt 0:00:16]} Rd3 {[%emt 0:00:00]} 29. Nxa5 {[%emt 0:00:09]} Rxf3 {[%emt 0:00:00]} 30. Bxb4 {[%emt 0:00:17]} Rd3 {[%emt 0:00:00]} 31. Bd6 {[%emt 0:03:27]} f6 {[%emt 0:00:00]} 32. b4 {[%emt 0:02:01]} fxe5 {[%emt 0:00:00]} 33. Bxe5 {[%emt 0:00:16]} Ra3 {[%emt 0:00:00]} 34. b5 {[%emt 0:00:39]} 1-0